bitfinex-derivatives/quotes_ETHF0:USTF0_20240924
["timestamp","ask_amount","ask_price","bid_price","bid_amount"]
[1727189260056,1.48344776,2611.9,2611.3,3.2078]
[1727189260259,0.38288,2611.7,2611.3,3.2078]
[1727189260556,0.38285,2611.8,2611.3,5.1218]
[1727189260746,0.38285,2611.8,2611.3,5.50472]
[1727189260747,0.38286,2611.8,2611.3,5.50472]
[1727189260948,2.44052776,2612.0,2611.4,0.38291]
[1727189260949,0.38285,2611.9,2611.4,0.38291]
[1727189261346,0.38285,2611.9,2611.4,0.3829]
[1727189261548,1.48344776,2612.0,2611.3,5.1218]
[1727189261745,1.86625776,2612.1,2611.3,5.1218]
[1727189261958,0.38283,2612.0,2611.6,3.2078]
[1727189262160,0.38283,2612.0,2611.6,3.59068]
[1727189262356,0.38283,2612.0,2611.6,3.2078]
[1727189262554,1.48344776,2612.1,2611.6,3.2078]
[1727189262759,1.48344776,2612.1,2611.3,1.914]
[1727189262760,0.95719,2611.7,2611.3,3.2078]
[1727189262956,1.6318,2611.6,2611.3,3.2078]
[1727189263259,0.3829,2611.5,2611.3,3.2078]
[1727189263760,0.38291,2611.4,2611.3,3.2078]
[1727189264055,4.78686,2611.5,2611.0,14.6938]
[1727189264358,0.38294,2611.3,2611.0,14.6938]
[1727189264562,0.38294,2611.2,2611.0,14.6938]
[1727189264750,0.38296,2611.1,2611.0,14.6938]
[1727189265055,0.38295,2611.2,2611.0,12.7798]
[1727189265257,1.86637776,2611.3,2611.0,12.7798]
[1727189265445,1.48344776,2611.4,2611.0,12.7798]
[1727189265651,0.38293,2611.3,2611.0,12.7798]
[1727189266057,1.48344776,2611.4,2610.7,3.2078]
[1727189266252,0.38298,2611.0,2610.7,3.2078]
[1727189266456,0.38298,2611.0,2610.7,5.1218]
[1727189266457,0.38297,2611.0,2610.7,5.1218]
[1727189266760,1.86637776,2611.3,2610.7,5.50481]
[1727189266954,0.38295,2611.2,2610.7,5.1218]
[1727189267563,1.48344776,2611.2,2610.7,5.50481]
[1727189267753,1.48344776,2611.2,2610.7,3.2078]
[1727189268053,0.38298,2611.0,2610.7,5.1218]
[1727189268259,0.9574,2611.1,2610.7,3.2078]
[1727189268447,0.9574,2611.1,2610.4,5.1218]
[1727189268448,0.38303,2610.6,2610.4,5.1218]
[1727189268647,1.48344776,2610.7,2610.0,3.1421]
[1727189268847,0.38309,2610.3,2609.9,5.1218]
[1727189269048,0.38309,2610.2,2609.9,5.1218]
[1727189269261,1.48344776,2610.4,2609.9,3.2078]
[1727189269262,0.38311,2610.1,2609.9,3.2078]
[1727189269562,1.86654776,2610.2,2609.8,3.2078]
[1727189269752,3.24875437,2610.1,2609.8,3.2078]
[1727189270055,3.05704776,2610.1,2609.8,3.2078]
[1727189270257,1.48344776,2610.3,2609.8,6.90094]
[1727189270451,1.48344776,2610.4,2610.1,3.2078]
[1727189270649,1.48344776,2610.5,2610.1,3.2078]
[1727189270866,1.67513366,2610.6,2610.1,3.2078]
[1727189271059,1.48344776,2610.5,2610.1,3.2078]
[1727189271364,1.48344776,2610.6,2610.1,3.2078]
[1727189271657,1.67512939,2610.6,2610.1,3.2078]
[1727189271860,2.05816939,2610.6,2610.2,3.2078]
[1727189272059,1.86648776,2610.6,2610.2,3.2078]
[1727189272454,1.4942,2610.7,2609.9,3.2078]
[1727189272455,0.38307,2610.4,2609.9,3.2078]
[1727189272649,0.38308,2610.3,2609.9,3.2078]
[1727189272853,4.69124776,2610.5,2609.9,3.2078]
[1727189272854,1.86651776,2610.4,2609.9,3.2078]
[1727189273057,0.38308,2610.3,2609.9,3.2078]
[1727189273859,1.48344776,2610.4,2609.9,3.2078]
[1727189274059,0.38309,2610.2,2609.9,3.2078]
[1727189274263,3.2078,2610.5,2609.5,4.8445]
[1727189274264,3.2078,2610.0,2609.5,4.8445]
[1727189274468,1.48344776,2610.0,2609.3,6.5178]
[1727189274768,8.16085776,2610.1,2609.3,12.4000782]
[1727189275065,0.38312,2610.0,2609.3,12.4000782]
[1727189275451,7.77774776,2610.1,2609.3,4.7333]
[1727189275858,0.38321,2609.4,2609.3,3.2078]
[1727189276063,3.2078,2609.4,2609.0,3.2078]
[1727189276257,0.38314,2609.9,2609.1,0.38324]
[1727189276463,0.38314,2609.9,2609.3,3.2078]
[1727189276464,1.48344776,2609.7,2609.3,3.2078]
[1727189276762,1.86659776,2609.8,2609.3,3.2078]
[1727189277171,0.38315,2609.8,2609.4,3.2078]
[1727189277367,1.86658776,2609.9,2609.4,3.2078]
[1727189278068,1.48344776,2609.9,2609.4,3.2078]
[1727189278458,0.38317,2609.7,2609.4,3.2078]
[1727189279255,0.38317,2609.7,2609.2,1.5639]
[1727189279460,1.48344776,2609.9,2609.2,1.5639]
[1727189279461,0.38318,2609.6,2609.2,1.5639]
[1727189280467,1.48344776,2609.9,2609.2,1.5639]
[1727189280468,0.38319,2609.5,2609.2,1.5639]
[1727189280661,0.38321,2609.4,2609.2,1.5639]
[1727189280864,0.3832,2609.5,2609.2,1.5639]
[1727189281372,0.38318,2609.6,2609.2,1.5639]
[1727189282065,3.2078,2609.7,2609.2,1.5639]
[1727189282567,0.38316,2609.8,2609.2,1.94713]
[1727189282869,1.48344776,2609.9,2609.2,1.5639]
[1727189283067,0.38319,2609.6,2609.2,1.5639]
[1727189283367,0.38319,2609.6,2609.4,3.2078]
[1727189283569,0.38319,2609.5,2609.4,3.2078]
[1727189284164,0.38324,2609.2,2608.9,1.915]
[1727189284463,0.38324,2609.2,2608.6,3.2078]
[1727189284464,0.38327,2609.0,2608.8,4.9842]
[1727189284666,0.38328,2608.9,2608.8,3.0692]
[1727189284866,0.38329,2608.8,2608.7,4.18955782]
[1727189285064,4.16596,2609.1,2608.5,1.915]
[1727189285065,0.38332,2608.7,2608.5,1.915]
[1727189285460,0.3833,2608.8,2608.5,1.915]
[1727189285769,3.2078,2609.1,2608.5,1.915]
[1727189286170,0.38329,2608.9,2608.5,1.915]
[1727189286473,0.38332,2608.6,2608.5,1.915]
[1727189287067,0.95817,2609.0,2608.5,1.915]
[1727189287968,3.2078,2609.1,2608.5,1.915]
[1727189288172,7.2898,2609.7,2608.9,3.2078]
[1727189288378,0.3832,2609.5,2608.9,3.2078]
[1727189288569,0.38319,2609.5,2609.2,3.2078]
[1727189288876,0.38319,2609.5,2609.1,0.38324]
[1727189289174,0.95795,2609.6,2609.0,3.61936]
[1727189289365,0.38323,2609.3,2609.0,3.2361]
[1727189289565,0.95798,2609.5,2609.0,3.2361]
[1727189289873,0.38326,2609.0,2608.9,3.2078]
[1727189290061,0.38329,2608.8,2608.7,1.911]
[1727189290875,0.38329,2608.9,2608.7,1.911]
[1727189291071,0.38329,2608.8,2608.7,1.911]
[1727189291273,1.5925,2609.2,2608.7,1.911]
[1727189291477,2.55062,2609.2,2608.7,5.1188]
[1727189291775,0.38327,2609.0,2608.7,1.911]
[1727189292073,1.5481,2609.4,2608.8,4.00597595]
[1727189292267,3.2078,2609.8,2609.1,0.38324]
[1727189292268,0.3832,2609.5,2609.1,0.38324]
[1727189292572,0.3832,2609.5,2609.0,3.2078]
[1727189292779,0.3832,2609.5,2609.1,0.38324]
[1727189292977,0.38318,2609.6,2609.0,3.2078]
[1727189293170,3.1822,2609.8,2609.2,0.38322]
[1727189293369,0.95795,2609.6,2609.0,3.2078]
[1727189293674,0.38325,2609.1,2609.0,3.2078]
[1727189293870,0.38324,2609.2,2609.0,3.2078]
[1727189294071,10.6579,2609.8,2609.0,3.2078]
[1727189294072,0.38325,2609.1,2609.0,3.2078]
[1727189294273,0.95808,2609.3,2608.7,5.1188]
[1727189294577,0.38327,2609.0,2608.7,5.1188]
[1727189294776,0.38329,2608.9,2608.7,5.1188]
[1727189294976,0.38329,2608.8,2608.7,5.1188]
[1727189295375,2.51024,2609.1,2608.7,5.1188]
[1727189295582,0.38329,2608.8,2608.7,1.911]
[1727189295776,2.51024,2609.1,2608.1,3.2078]
[1727189295777,0.38334,2608.5,2608.1,3.2078]
[1727189296075,0.38339,2608.2,2607.9,1.911]
[1727189296282,1.5521,2608.4,2607.9,1.911]
[1727189296671,1.93546,2608.4,2608.0,0.38341]
[1727189296865,1.93546,2608.4,2607.9,3.81992]
[1727189297069,1.93546,2608.4,2607.9,5.33142]
[1727189297276,0.38339,2608.2,2607.9,4.948]
[1727189297476,1.5521,2608.4,2607.9,4.948]
[1727189297682,1.5521,2608.4,2607.9,5.33142]
[1727189297880,1.5521,2608.4,2607.9,4.948]
[1727189298079,0.38341,2608.0,2607.8,12.7878]
[1727189298285,0.95843,2608.3,2607.8,12.7878]
[1727189298286,0.3834,2608.1,2607.8,12.7878]
[1727189298581,1.5509,2608.3,2607.8,12.7878]
[1727189299678,0.38338,2608.2,2607.8,12.7878]
[1727189299873,1.5509,2608.3,2607.8,12.7878]
[1727189300072,0.38338,2608.2,2607.8,12.7878]
[1727189300279,1.5509,2608.3,2607.8,12.7878]
[1727189300476,0.38343,2607.9,2607.8,12.7878]
[1727189300681,0.38339,2608.2,2607.8,12.7878]
[1727189300881,0.38339,2608.2,2607.8,13.17124]
[1727189301084,0.38338,2608.2,2607.8,13.17124]
[1727189301384,1.5521,2608.4,2607.8,12.7878]
[1727189301585,1.90671,2608.7,2608.3,3.59116]
[1727189301881,1.5234,2608.7,2608.0,3.2078]
[1727189302089,1.5234,2608.7,2608.1,1.911]
[1727189302090,0.95832,2608.6,2608.1,1.911]
[1727189302278,2.55269,2608.5,2608.1,1.911]
[1727189302482,1.5943,2608.5,2608.1,1.911]
[1727189302674,1.5943,2608.5,2608.1,3.87059]
[1727189302675,1.97764,2608.5,2608.1,3.87059]
[1727189302987,1.5943,2608.5,2608.3,3.2078]
[1727189303280,1.5234,2608.7,2608.3,3.2078]
[1727189303483,3.2078,2608.5,2608.1,1.911]
[1727189303684,0.38342,2608.0,2607.8,9.58]
[1727189303876,0.38343,2607.9,2607.8,12.7878]
[1727189304185,0.38343,2607.9,2607.8,9.58]
[1727189304373,0.38343,2607.9,2607.6,3.4518]
[1727189304374,0.38344,2607.9,2607.6,1.911]
[1727189304780,0.38344,2607.8,2607.6,1.911]
[1727189304985,0.38351,2607.4,2607.0,0.38355]
[1727189305176,0.38352,2607.3,2607.1,3.2078]
[1727189305678,2.45178,2607.6,2607.1,3.2078]
[1727189305679,0.38351,2607.4,2607.1,3.2078]
[1727189305871,1.4931,2607.6,2607.1,3.2078]
[1727189306483,0.38352,2607.3,2607.1,3.2078]
[1727189306687,0.38351,2607.4,2607.1,3.2078]
[1727189306874,1.4931,2607.6,2607.1,3.2078]
[1727189307271,0.38349,2607.5,2607.1,3.59134]
[1727189307470,1.4931,2607.6,2607.2,0.38352]
[1727189307471,1.87657,2607.6,2607.2,0.38352]
[1727189307675,1.4931,2607.6,2607.3,0.38351]
[1727189308071,1.91686,2607.7,2607.3,4.2187]
[1727189308385,1.91686,2607.7,2607.1,3.2078]
[1727189308579,1.5334,2607.7,2607.1,3.2078]
[1727189308779,1.5334,2607.7,2607.1,3.59134]
[1727189308780,0.38349,2607.5,2607.1,3.59134]
[1727189309381,1.5334,2607.7,2607.1,3.2078]
[1727189309382,0.38351,2607.4,2607.1,3.2078]
[1727189310085,0.38348,2607.6,2607.1,3.59133]
[1727189310274,3.0545,2607.7,2607.1,3.59133]
[1727189310275,0.38349,2607.5,2607.1,3.59133]
[1727189310677,0.38349,2607.5,2607.2,0.38353]
[1727189310976,2.01585,2607.8,2607.4,3.2078]
[1727189311174,1.6324,2607.8,2607.3,5.55252304]
[1727189311378,0.38348,2607.6,2607.3,1.5093]
[1727189311580,1.6324,2607.8,2607.3,1.5093]
[1727189311779,1.6324,2607.8,2607.5,3.59128]
[1727189312095,5.25322343,2608.7,2607.8,0.38344]
[1727189312280,1.6161,2608.4,2607.8,3.59124]
[1727189312479,0.3834,2608.1,2607.8,5.50324]
[1727189313187,0.38337,2608.3,2608.0,3.2078]
[1727189313483,0.38338,2608.3,2607.9,0.38341]
[1727189313685,1.6161,2608.4,2608.0,3.59121]
[1727189313987,0.38337,2608.3,2608.0,3.59121]
[1727189314288,0.38337,2608.3,2607.5,3.2078]
[1727189314289,0.38343,2607.9,2607.5,3.2078]
[1727189314588,0.38343,2607.9,2607.0,1.912]
[1727189314589,0.38349,2607.5,2607.0,3.5557]
[1727189314790,0.38349,2607.5,2607.2,3.2078]
[1727189315089,2.03119,2607.5,2607.1,3.2078]
[1727189315581,1.6477,2607.5,2607.1,3.2078]
[1727189317185,2.03119,2607.5,2607.1,3.2078]
[1727189317390,1.6477,2607.5,2607.1,3.2078]
[1727189317689,4.8239,2607.8,2607.1,3.2078]
[1727189317991,1.6161,2607.8,2607.3,0.38351]
[1727189318180,1.6161,2607.8,2607.3,0.3835]
[1727189318377,0.38346,2607.7,2607.4,4.22885463]
[1727189318576,4.8239,2607.8,2607.2,4.7657]
[1727189318577,0.38348,2607.6,2607.2,4.7657]
[1727189319183,1.6161,2607.8,2607.2,4.7657]
[1727189319382,1.6161,2607.8,2607.5,3.2078]
[1727189319684,0.38342,2608.0,2607.5,0.38347]
[1727189319875,0.38341,2608.0,2607.5,3.59128]
[1727189320381,0.38342,2608.0,2607.5,3.59128]
[1727189320585,4.7352,2608.1,2607.5,3.59128]
[1727189320586,0.38343,2607.9,2607.5,3.59128]
[1727189320877,3.59121,2608.1,2607.5,3.2078]
[1727189321080,3.2078,2608.1,2607.6,1.6483]
[1727189321279,3.2078,2608.1,2607.7,0.38346]
[1727189321484,0.98494343,2608.3,2607.9,0.38342]
[1727189321677,3.2078,2608.4,2608.1,0.3834]
[1727189321879,4.19274343,2608.8,2608.2,3.8336]
[1727189322078,1.36821343,2609.0,2608.5,3.2078]
[1727189322280,8.3295,2609.3,2608.6,1.5518]
[1727189322281,0.98494343,2609.1,2608.6,1.5518]
[1727189322486,1.94304343,2609.2,2608.6,1.5518]
[1727189322682,3.31,2609.0,2608.6,5.84776098]
[1727189322880,0.38331,2608.7,2608.6,1.5518]
[1727189323081,0.38335,2608.4,2608.2,4.8939]
[1727189323284,3.31,2608.7,2608.2,3.2078]
[1727189323484,1.6177,2608.6,2608.0,1.907]
[1727189323679,0.38339,2608.2,2608.0,1.907]
[1727189323881,0.38335,2608.5,2608.0,2.29041]
[1727189324086,1.6177,2608.6,2608.1,3.2078]
[1727189324894,1.6177,2608.6,2608.1,4.8317]
[1727189325091,2.60264343,2608.6,2608.1,3.2078]
[1727189325296,2.60264343,2608.6,2608.0,1.907]
[1727189325482,0.38335,2608.4,2608.0,1.907]
[1727189325684,3.31,2608.5,2608.0,1.907]
[1727189325883,0.38337,2608.3,2608.0,1.907]
[1727189326189,3.31,2608.5,2608.0,1.907]
[1727189326386,0.38337,2608.3,2608.0,1.907]
[1727189326694,4.29494343,2608.5,2608.0,1.907]
[1727189326695,0.38335,2608.5,2608.1,3.2078]
[1727189326892,2.60264343,2608.6,2608.2,3.2078]
[1727189327195,0.38337,2608.3,2608.2,3.2078]
[1727189327389,2.60264343,2608.6,2608.0,1.907]
[1727189327390,0.98494343,2608.5,2608.0,1.907]
[1727189327604,0.38339,2608.2,2608.0,1.907]
[1727189328296,0.3834,2608.1,2607.8,4.7596]
[1727189328490,0.38339,2608.2,2607.9,1.907]
[1727189328992,0.3834,2608.1,2607.9,1.907]
[1727189329288,0.98494343,2608.4,2607.9,2.29042]
[1727189329492,0.98494343,2608.4,2608.1,3.2078]
[1727189329684,1.36830343,2608.4,2608.1,3.2078]
[1727189329884,0.38337,2608.3,2608.1,3.2078]
[1727189330094,0.38338,2608.2,2608.1,3.2078]
[1727189330882,0.98494343,2608.4,2608.1,3.2078]
[1727189330883,0.38337,2608.3,2608.1,3.2078]
[1727189331095,0.38338,2608.2,2608.1,3.2078]
[1727189331284,0.38337,2608.3,2608.1,3.2078]
[1727189331491,0.38338,2608.2,2608.1,3.2078]
[1727189332091,0.98494343,2608.4,2608.1,3.2078]
[1727189332293,0.38338,2608.3,2608.1,3.2078]
[1727189332497,0.38338,2608.2,2608.1,3.2078]
[1727189334397,1.5317,2608.3,2607.9,1.907]
[1727189334398,0.38341,2608.0,2607.9,1.907]
[1727189334592,0.98494343,2608.3,2608.0,0.38341]
[1727189334790,0.98494343,2608.5,2608.3,0.38337]
[1727189335097,4.7704,2608.7,2608.4,4.74341927]
[1727189335098,0.98494343,2608.7,2608.4,4.74341927]
[1727189335305,0.38332,2608.6,2608.5,3.2078]
[1727189335593,0.98494343,2608.8,2608.5,3.2078]
[1727189335594,1.36824343,2608.8,2608.5,3.2078]
[1727189336393,0.38331,2608.7,2608.5,3.2078]
[1727189336698,1.36824343,2608.8,2608.5,3.2078]
[1727189337087,0.98494343,2608.8,2608.5,3.59114]
[1727189337392,1.36825343,2608.8,2608.5,3.2078]
[1727189338691,0.38332,2608.7,2608.5,3.2078]
[1727189338899,0.98494343,2608.8,2608.5,3.2078]
[1727189339101,0.98494343,2608.8,2608.6,8.51863607]
[1727189339286,0.98494343,2608.8,2608.7,3.8336]
[1727189339484,0.98494343,2608.9,2608.7,3.8336]
[1727189339684,0.98494343,2608.9,2608.8,1.907]
[1727189339889,3.42121776,2609.0,2608.8,1.907]
[1727189340091,0.99449857,2608.9,2608.8,1.907]
[1727189340284,3.42122776,2609.0,2608.8,1.907]
[1727189340491,1.86672776,2608.9,2608.8,1.907]
[1727189340894,1.48344776,2608.9,2608.8,1.907]
[1727189341202,0.9945096,2608.9,2608.8,1.907]
[1727189341498,3.03794776,2609.0,2608.8,5.7398]
[1727189341707,0.99465972,2608.9,2608.8,1.907]
[1727189341891,3.03794776,2609.0,2608.8,1.907]
[1727189342091,4.69124776,2608.9,2608.2,3.2078]
[1727189342291,0.38337,2608.4,2608.2,3.2078]
[1727189342496,1.5727,2608.3,2608.2,3.2078]
[1727189342697,1.5727,2608.3,2608.1,1.907]
[1727189342698,4.14138791,2608.3,2608.1,1.907]
[1727189342889,0.99508791,2608.2,2608.1,1.907]
[1727189343096,5.01312776,2608.3,2608.1,1.907]
[1727189343297,1.48344776,2608.2,2608.1,1.907]
[1727189344004,4.62974776,2608.3,2608.1,1.907]
[1727189344503,5.01312776,2608.3,2608.1,1.907]
[1727189344799,4.62974776,2608.3,2608.1,1.907]
[1727189345002,0.994119,2608.2,2608.1,1.907]
[1727189345304,1.48344776,2608.2,2608.1,1.907]
[1727189345491,4.62974776,2608.3,2608.1,1.907]
[1727189345799,0.99415139,2608.2,2608.1,5.1148]
[1727189346000,0.99415139,2608.4,2608.2,8.05610167]
[1727189346198,0.99415139,2608.4,2608.1,9.32604569]
[1727189346400,0.99415139,2608.3,2608.1,1.907]
[1727189346603,0.99415139,2608.4,2608.1,1.907]
[1727189346799,0.99415139,2608.3,2608.1,1.907]
[1727189347099,0.99415139,2608.3,2608.1,5.1148]
[1727189347293,0.99415139,2608.4,2608.1,5.1148]
[1727189348195,0.99415139,2608.4,2608.3,0.38337]
[1727189348403,2.43381544,2609.0,2608.2,3.8336]
[1727189348404,0.99415139,2608.7,2608.5,0.38333]
[1727189348708,0.99415139,2608.8,2608.5,3.2078]
[1727189349096,0.99415139,2608.8,2608.5,3.59113]
[1727189349604,0.99415139,2608.8,2608.6,0.38332]
[1727189349799,0.99415139,2608.8,2608.5,3.59113]
[1727189350106,0.99415139,2608.8,2608.5,3.2078]
[1727189350604,1.37745139,2608.8,2608.5,3.2078]
[1727189350796,0.99415139,2608.7,2608.5,3.2078]
[1727189351105,0.99415139,2608.8,2608.5,3.2078]
[1727189351595,0.99415139,2608.7,2608.6,0.38332]
[1727189351796,0.99415139,2608.8,2608.6,0.38332]
[1727189351996,0.99415139,2608.8,2608.5,3.59113]
[1727189352709,0.99415139,2608.8,2608.5,3.2078]
[1727189353005,0.99415139,2608.8,2608.5,3.59113]
[1727189353208,0.99415139,2608.8,2608.5,3.2078]
[1727189353398,0.99415139,2608.8,2608.5,3.59113]
[1727189354310,0.99415139,2608.8,2608.6,0.38331]
[1727189354604,0.99415139,2608.9,2608.8,0.38329]
[1727189354796,0.99415139,2608.9,2608.8,3.59109]
[1727189355104,1.37743139,2608.9,2608.8,3.2078]
[1727189355618,0.38328,2608.9,2608.8,3.2078]
[1727189356108,3.55502776,2608.9,2608.8,3.2078]
[1727189356410,7.38782776,2608.9,2608.8,3.2078]
[1727189356613,7.19634552,2608.9,2608.4,5.1108]
[1727189356909,0.99636454,2608.5,2608.4,5.1108]
[1727189357108,1.37970454,2608.5,2608.4,5.1108]
[1727189358004,0.99636454,2608.5,2608.4,5.1108]
[1727189358407,1.37970454,2608.5,2608.4,5.1108]
[1727189358704,0.99636454,2608.5,2608.4,5.1108]
[1727189359298,1.67525527,2608.6,2608.4,5.1108]
[1727189359709,2.05858527,2608.6,2608.4,5.1108]
[1727189359915,1.48344776,2608.6,2608.4,5.1108]
[1727189360204,1.67525427,2608.6,2608.4,1.903]
[1727189360408,1.48344776,2608.5,2608.4,1.903]
[1727189360709,1.48344776,2608.6,2608.4,1.903]
[1727189360911,1.67526065,2608.6,2608.4,1.903]
[1727189361214,1.86676776,2608.6,2608.4,1.903]
[1727189361506,1.48344776,2608.5,2608.4,1.903]
[1727189362215,1.67526109,2608.5,2608.4,1.903]
[1727189363100,1.49755135,2608.5,2608.4,1.903]
[1727189363405,0.57515333,2608.5,2608.4,1.903]
[1727189363606,0.57515333,2608.5,2608.0,3.2078]
[1727189363800,1.49812148,2608.2,2608.1,1.903]
[1727189364104,1.49818466,2608.2,2608.1,2.28639]
[1727189364302,0.19181333,2608.3,2608.1,6.12079]
[1727189364303,1.49818466,2608.3,2608.1,6.12079]
[1727189364497,1.5397,2608.4,2608.1,6.12079]
[1727189364498,1.49818466,2608.2,2608.1,1.903]
[1727189364906,1.49818466,2608.3,2608.2,0.38338]
[1727189365105,0.99886525,2608.3,2608.2,6.90778]
[1727189365310,0.99886525,2608.3,2608.2,17.99527562]
[1727189365606,0.99886525,2608.4,2608.3,0.38337]
[1727189365799,1.49818466,2608.6,2608.4,0.38335]
[1727189365800,0.99886525,2608.5,2608.4,0.38335]
[1727189365996,0.99886525,2608.5,2608.4,4.21695]
[1727189366198,1.49818466,2608.7,2608.5,0.38334]
[1727189366199,0.99886525,2608.6,2608.5,0.38334]
[1727189366408,1.49818466,2608.7,2608.6,0.38332]
[1727189366601,1.49818466,2608.7,2608.6,8.20672182]
[1727189367111,1.49818466,2608.7,2608.6,4.21692]
[1727189367609,1.49818466,2608.7,2608.3,3.2078]
[1727189367610,0.19178592,2608.7,2608.4,0.38334]
[1727189367805,0.99878198,2608.5,2608.4,0.38334]
[1727189368003,0.99878198,2608.5,2608.4,4.50639257]
[1727189368209,0.99878198,2608.5,2608.4,10.24300257]
[1727189368701,0.99878198,2608.5,2608.4,16.24300257]
[1727189368903,0.99878198,2608.6,2608.5,0.38334]
[1727189369212,0.99878198,2608.6,2608.5,3.07334]
[1727189369409,0.99878198,2608.6,2608.5,16.99653364]
[1727189370104,0.99878198,2608.7,2608.6,0.38332]
[1727189370299,1.49817297,2608.8,2608.6,8.38304]
[1727189370300,0.99878198,2608.8,2608.6,8.38304]
[1727189370505,0.99878198,2608.9,2608.8,0.38329]
[1727189370804,0.99878198,2609.0,2608.9,4.51920754]
[1727189370999,0.1917505,2609.3,2609.2,0.38324]
[1727189371201,1.99749531,2609.7,2609.2,5.8978]
[1727189371405,1.99749531,2609.8,2609.6,3.07318]
[1727189371707,0.19172527,2609.7,2609.6,2.69]
[1727189371909,0.19172527,2609.7,2609.5,0.38318]
[1727189372201,2.38063531,2609.9,2609.0,3.67251095]
[1727189372202,2.95533531,2609.9,2609.0,3.67251095]
[1727189372403,0.10039,2609.6,2609.2,0.38323]
[1727189372597,0.48357,2609.6,2609.2,4.68477404]
[1727189372803,0.48357,2609.6,2609.3,0.38322]
[1727189373198,0.10039,2609.6,2609.3,0.38321]
[1727189373807,0.48358,2609.6,2609.2,3.07323]
[1727189374001,0.48358,2609.6,2609.2,5.8978]
[1727189374303,0.10039,2609.6,2609.3,0.38321]
[1727189374712,0.10039,2609.6,2609.2,5.8978]
[1727189374713,0.10039,2609.6,2609.4,0.38321]
[1727189374903,0.10039,2609.6,2609.2,5.8978]
[1727189375302,0.48357,2609.6,2609.3,0.38321]
[1727189375515,0.10039,2609.6,2609.3,0.38321]
[1727189375698,0.10039,2609.6,2609.5,0.38319]
[1727189376104,1.5371,2609.7,2609.6,0.38318]
[1727189376404,1.5371,2609.7,2609.4,2.69]
[1727189376612,1.5371,2609.7,2609.6,0.38318]
[1727189376912,1.5581,2610.0,2609.7,0.38315]
[1727189377106,0.19170649,2609.9,2609.7,0.38315]
[1727189377308,1.5581,2610.0,2609.7,0.38315]
[1727189377510,1.5581,2610.0,2609.6,7.08682638]
[1727189377699,0.38314,2609.9,2609.6,4.39682638]
[1727189377904,1.5581,2610.0,2609.6,4.39682638]
[1727189378119,4.70512648,2610.0,2609.7,1.903]
[1727189378411,0.57486117,2609.9,2609.7,1.903]
[1727189378606,0.38314,2609.9,2609.7,1.903]
[1727189379526,1.99749531,2610.1,2609.7,4.593]
[1727189379819,3.1708,2610.2,2609.8,3.2078]
[1727189380019,0.57480747,2610.1,2609.9,1.897]
[1727189380211,1.6192,2610.0,2609.9,1.897]
[1727189380411,1.81091034,2610.0,2609.9,1.897]
[1727189380728,5.4504,2610.0,2609.9,1.897]
[1727189380909,5.64211102,2610.0,2609.9,1.897]
[1727189381314,5.4504,2610.0,2609.9,1.897]
[1727189381714,5.4504,2610.0,2609.5,3.07318]
[1727189381715,5.4504,2610.0,2609.5,2.69]
[1727189381914,1.6192,2610.0,2609.6,1.897]
[1727189382115,2.00232,2610.0,2609.6,1.897]
[1727189382421,1.6192,2610.0,2609.6,2.28017]
[1727189382609,2.00232,2610.0,2609.6,1.897]
[1727189383516,2.00233,2610.0,2609.6,1.897]
[1727189383718,1.6192,2610.0,2609.6,2.28017]
[1727189385322,2.00232,2610.0,2609.6,1.897]
[1727189386115,0.38313,2609.9,2609.6,1.897]
[1727189386316,2.00232,2610.0,2609.6,1.897]
[1727189386622,0.38314,2609.9,2609.6,1.897]
[1727189386826,2.00233,2610.0,2609.6,1.897]
[1727189387217,1.6192,2610.0,2609.6,2.28018]
[1727189387419,2.00232,2610.0,2609.6,1.897]
[1727189388124,1.6192,2610.0,2609.7,0.38315]
[1727189388317,3.5909,2610.1,2609.7,0.38315]
[1727189388517,3.2078,2610.1,2609.7,0.38315]
[1727189388920,3.2078,2610.5,2609.9,2.69]
[1727189389118,4.4786,2611.0,2610.4,5.8978]
[1727189389321,2.9799,2611.0,2610.9,0.38299]
[1727189389524,4.7065,2611.4,2611.1,0.38295]
[1727189389725,7.6864,2611.4,2611.1,2.69]
[1727189389929,0.38296,2611.1,2610.8,1.5302]
[1727189390114,0.38294,2611.3,2610.7,3.59081]
[1727189390320,0.38294,2611.2,2610.7,3.59081]
[1727189390622,0.38298,2611.0,2610.8,1.897]
[1727189390822,1.4926,2610.9,2610.8,1.897]
[1727189392121,3.2078,2611.1,2610.8,1.897]
[1727189392321,1.98783,2611.3,2610.8,1.897]
[1727189392529,0.38296,2611.2,2610.8,1.897]
[1727189392722,0.38296,2611.1,2610.8,1.897]
[1727189392928,0.38295,2611.2,2610.8,1.897]
[1727189393138,0.38296,2611.1,2610.8,1.897]
[1727189393321,0.38297,2611.0,2610.8,1.897]
[1727189393716,1.98784,2611.3,2610.8,1.897]
[1727189394020,0.38294,2611.2,2610.8,1.897]
[1727189394222,1.98783,2611.3,2610.8,1.897]
[1727189394534,0.38294,2611.2,2610.8,1.897]
[1727189395225,3.2078,2611.1,2610.8,1.897]
[1727189396631,3.07294,2611.2,2610.8,1.897]
[1727189397326,0.38296,2611.1,2610.8,1.897]
[1727189397527,3.07295,2611.2,2610.8,1.897]
[1727189397720,0.38296,2611.1,2610.8,1.897]
[1727189397922,3.2078,2611.1,2610.8,1.897]
[1727189398233,2.69,2611.2,2610.8,1.897]
[1727189398528,3.07299,2610.9,2610.8,1.897]
[1727189398923,2.69,2610.9,2610.8,1.897]